[Event "Vugar Gashimov Memorial Blitz 2024"]
[Site "Shusha"]
[Date "2024.09.28"]
[Round "14.2"]
[White "Abdusattorov, Nodirbek"]
[Black "Mamedov, Rauf"]
[Result "1/2-1/2"]
[ECO "B27"]
[WhiteElo "2766"]
[BlackElo "2637"]
[Annotator "TA"]
[PlyCount "167"]
[EventDate "2024.09.28"]
[EventType "tourn"]
[EventCountry "AZE"]
[SourceTitle "playchess.com"]
[Source "ChessBase"]
[SourceQuality "1"]
[TimeControl "180+2"]

{[%evp 90,167,276,272,287,0,277,0,285,248,291,-48,-27,-229,-50,-63,-51,-58,-8,-9,-10,-11,-9,-8,-10,-8,0,-8,0,0,0,0,0,0,0,0,0,0,0,0,0,-8,-8,-22,0,0,0,0,0,0,0,0,0,0,0,0,0,0,0,0,0,0,0,0,0,0,0,0,0,0,0,0,0,0,0,0,0,0,0,0]} 1. e4 {[%emt 0:00:01]} c5 {[%emt 0:00:00]} 2. Nf3 {[%emt 0:00:02]} g6 {[%emt 0:00:02]} 3. c3 {[%emt 0:00:07]} d5 {[%emt 0:00:01]} 4. e5 {[%emt 0:00:03]} a6 {[%emt 0:00:03]} 5. d4 {[%emt 0:00:07]} cxd4 {[%emt 0:00:34]} 6. cxd4 {[%emt 0:00:02] B27: Sicilian: 2 Nf3, unusual Black 2nd moves.} Bg4 {[%emt 0:00:01] 6...Nc6 is the modern continuation.} 7. Be2 {[%emt 0:00:11]} Bxf3 {[%emt 0:00:11]} 8. Bxf3 {[%emt 0:00:01]} e6 {[%emt 0:00:01]} 9. O-O {[%emt 0:00:04]} Nc6 {[%emt 0:00:00]} 10. Nc3 {[%emt 0:00:13]} Nge7 {[%emt 0:00:09]} 11. Bg5 {[%emt 0:00:21]} Bg7 {[%emt 0:00:01]} 12. g4 {[%emt 0:00:05]} h6 {[%emt 0:00:04]} 13. Be3 {[%emt 0:00:05]} h5 {[%emt 0:00:14]} 14. h3 {[%emt 0:00:08]} hxg4 {[%emt 0:00:01]} 15. hxg4 {[%emt 0:00:01]} g5 $146 {[%emt 0:00:35]} ({Predecessor:} 15... Nf5 16. gxf5 Qh4 17. Re1 gxf5 18. Qd2 Bxe5 19. dxe5 Nxe5 20. Bg2 Rg8 21. Bg5 Rxg5 22. Rxe5 O-O-O {½-½ Kopczyk,D (2168)-Krystofiak,T (2093) POL-chT 2nd League 2006 (5.100)}) 16. Bxg5 {[%emt 0:00:09]} Qb6 {[%emt 0:00:06]} 17. Ne2 {[%emt 0:00:06]} O-O-O {[%emt 0:00:19]} 18. Qb3 {[%emt 0:00:08]} Qxb3 {[%emt 0:00:26]} 19. axb3 {[%emt 0:00:01]} Rdg8 {[%emt 0:00:01]} 20. Kg2 {[%emt 0:00:11]} Kd7 {[%emt 0:00:32]} 21. Rh1 {[%emt 0:00:04]} Ng6 {[%emt 0:00:07]} 22. Rad1 {[%emt 0:00:32]} Na5 {[%emt 0:00:04]} 23. Nc1 {[%emt 0:00:10]} Nc6 {[%emt 0:00:16]} 24. Rxh8 {[%emt 0:00:06]} Rxh8 {[%emt 0:00:00]} 25. Be3 {[%emt 0:00:06]} b6 {[%emt 0:00:00]} 26. Nd3 {[%emt 0:00:02]} a5 {[%emt 0:00:01]} 27. Kg3 {[%emt 0:00:02]} Bf8 {[%emt 0:00:01]} 28. Be2 {[%emt 0:00:05]} Be7 {[%emt 0:00:04]} 29. f4 {[%emt 0:00:01]} Bh4+ {[%emt 0:00:00]} 30. Kg2 {[%emt 0:00:02]} Bd8 {[%emt 0:00:02]} 31. Ne1 {[%emt 0:00:02]} Nb4 {[%emt 0:00:03]} 32. Bb5+ {[%emt 0:00:03]} Kc7 {[%emt 0:00:00]} 33. Rc1+ {[%emt 0:00:02]} Kb7 {[%emt 0:00:01]} 34. Nf3 {[%emt 0:00:05]} Rg8 {[%emt 0:00:04]} 35. Kg3 {[%emt 0:00:02]} Ne7 {[%emt 0:00:02]} 36. Kh3 {[%emt 0:00:09]} Rh8+ {[%emt 0:00:01]} 37. Kg2 {[%emt 0:00:00]} Rg8 {[%emt 0:00:00]} 38. Ng5 {[%emt 0:00:05]} Rg7 {[%emt 0:00:01]} 39. Kf3 {[%emt 0:00:02]} Nec6 {[%emt 0:00:02]} 40. Nh3 {[%emt 0:00:07]} Rh7 {[%emt 0:00:00]} 41. Nf2 {[%emt 0:00:05]} Na7 {[%emt 0:00:01]} 42. Be2 {[%emt 0:00:04]} Nac6 {[%emt 0:00:02]} 43. f5 {[%emt 0:00:02]} Rh2 {[%emt 0:00:07]} 44. Kg3 {[%emt 0:00:02]} Rh8 {[%emt 0:00:01]} 45. Nd3 {[%emt 0:00:04]} Nxd3 {[%emt 0:00:06]} 46. Bxd3 {[%emt 0:00:01]} Bh4+ {[%emt 0:00:02]} 47. Kf3 $2 {[%emt 0:00:07]} ({Better is} 47. Kf4 $18) 47... Bd8 $2 {[%emt 0:00:01][%mdl 8192]} (47... Bg5 $1 $11 48. Bxg5 Rh3+ 49. Ke2 Nxd4+ 50. Kd2 Nf3+ (50... Nxb3+ 51. Kc2 $11) 51. Ke3 Nxe5+ (51... Nxg5+ 52. Kf4 $16) 52. Ke2 Rh2+ (52... Rxd3 53. Bf4 $16) (52... Nxd3 53. Rc3 $11) 53. Ke3 Rh3+ (53... Rxb2 54. Bc2 $16) 54. Ke2 Rh2+ (54... Rxd3 55. Bf4 $16) (54... Nxd3 55. Rc3 $11) 55. Ke3 Rh3+ (55... Rxb2 56. Bc2 $16)) 48. Kg3 {[%emt 0:00:06]} Bh4+ {[%emt 0:00:02]} 49. Kg2 {[%emt 0:00:00]} Rg8 {[%emt 0:00:00]} 50. Bb5 $2 {[%emt 0:00:05]} ({White should play} 50. Kf3 $18) 50... Nxd4 $1 $15 {[%emt 0:00:01]} 51. Kh3 $2 {[%emt 0:00:04] [#]} (51. Bxd4 $11 {and White stays safe.} Rxg4+ (51... exf5 $2 52. Be2 $18) 52. Kf3 Rxd4 53. Bc6+ Ka6 54. fxe6 fxe6 55. Bd7) 51... Bg5 $2 {[%emt 0:00:06]} (51... Nxb5 52. Kxh4 exf5 53. gxf5 $11) (51... Rh8 $1 $19 52. Bxd4 Bg5+ 53. Kg2 Bxc1) 52. Bxg5 $15 {[%emt 0:00:01]} Rxg5 {[%emt 0:00:01]} 53. Kh4 {[%emt 0:00:01]} (53. fxe6 $2 fxe6 (53... Nxb5 $2 54. exf7 Rg7 55. f8=Q $18) 54. Be8 Rxe5 $19) 53... Nf3+ {[%emt 0:00:01]} (53... Rg7 $15 54. Bd7 exf5 (54... Nxb3 55. Bc8+ Kb8 56. Rc6 $19) 55. Bc8+ Kb8 56. Bxf5 Nf3+ (56... Nxb3 57. Rc8+ Kb7 58. Rf8 $16) 57. Kg3 Nxe5) 54. Kg3 $11 {[%emt 0:00:01]} Nxe5 {[%emt 0:00:04]} 55. Kf4 {[%emt 0:00:01]} f6 {[%emt 0:00:01]} 56. fxe6 {[%emt 0:00:02]} Ng6+ {[%emt 0:00:01]} 57. Kg3 {[%emt 0:00:03]} Re5 {[%emt 0:00:01]} 58. Bc6+ {[%emt 0:00:02]} Ka6 {[%emt 0:00:03]} 59. Bd7 {[%emt 0:00:03]} Nf8 {[%emt 0:00:09]} 60. Bc8+ {[%emt 0:00:08]} Kb5 {[%emt 0:00:00]} 61. Bd7+ {[%emt 0:00:03]} Kb4 {[%emt 0:00:00]} 62. Rc6 {[%emt 0:00:01]} b5 {[%emt 0:00:01]} 63. Rb6 {[%emt 0:00:00]} Kxb3 {[%emt 0:00:01]} 64. Rxb5+ {[%emt 0:00:01]} Kc4 {[%emt 0:00:01]} 65. Rb6 {[%emt 0:00:02]} ({Reject} 65. b3+ Kd4 $17) 65... d4 {[%emt 0:00:03]} 66. Kf3 {[%emt 0:00:04]} d3 {[%emt 0:00:01]} 67. Rd6 {[%emt 0:00:02]} Kc5 {[%emt 0:00:03]} 68. Rxd3 {[%emt 0:00:02]} Nxe6 {[%emt 0:00:01]} 69. Bxe6 {[%emt 0:00:02]} Rxe6 {[%emt 0:00:00]} 70. Kf4 {[%emt 0:00:01]} Kc4 {[%emt 0:00:03]} 71. Rc3+ {[%emt 0:00:01]} Kb4 {[%emt 0:00:02]} 72. Kf5 {[%emt 0:00:03]} Re2 {[%emt 0:00:01]} 73. Kxf6 {[%emt 0:00:05]} Rxb2 {[%emt 0:00:11]} 74. Rc8 {[%emt 0:00:03]} Rf2+ {[%emt 0:00:00]} 75. Ke6 {[%emt 0:00:02]} Rg2 {[%emt 0:00:00]} 76. Kf5 {[%emt 0:00:01]} a4 {[%emt 0:00:00]} 77. Rb8+ {[%emt 0:00:01]} Kc3 {[%emt 0:00:00]} 78. Ra8 {[%emt 0:00:01]} Kb3 {[%emt 0:00:00]} 79. g5 {[%emt 0:00:00]} a3 {[%emt 0:00:00]} 80. Kf6 {[%emt 0:00:01]} a2 {[%emt 0:00:00]} 81. g6 {[%emt 0:00:04]} Kb2 {[%emt 0:00:00]} 82. Rxa2+ {[%emt 0:00:01]} Kxa2 {[%emt 0:00:00]} 83. g7 {[%emt 0:00:01]} Rxg7 {[%emt 0:00:00]} 84. Kxg7 {[%emt 0:00:13]} 1/2-1/2

[Event "Vugar Gashimov Memorial Blitz 2024"]
[Site "Shusha"]
[Date "2024.09.28"]
[Round "14.3"]
[White "Artemiev, Vladislav"]
[Black "Aravindh, Chithambaram VR."]
[Result "0-1"]
[ECO "D77"]
[WhiteElo "2701"]
[BlackElo "2698"]
[Annotator "TA"]
[PlyCount "96"]
[EventDate "2024.09.28"]
[EventType "tourn"]
[EventCountry "AZE"]
[SourceTitle "playchess.com"]
[Source "ChessBase"]
[SourceQuality "1"]
[TimeControl "180+2"]

{[%evp 35,96,-29,-34,-37,-29,-48,-24,-36,0,0,0,-20,-23,-35,0,-31,0,-45,-36,-35,-20,-129,-71,-64,-70,-68,-90,-74,-31,-141,0,0,0,-20,0,-13,0,0,0,0,0,0,0,-127,434,466,558,-6,-25,-29,0,-374,-360,-29987,-29988,-29988,-29988,-29992,-29993,-29993,-29994,-29994,-29995]} 1. d4 {[%emt 0:00:02]} Nf6 {[%emt 0:00:01]} 2. Nf3 {[%emt 0:00:01]} g6 {[%emt 0:00:02]} 3. g3 {[%emt 0:00:01]} Bg7 {[%emt 0:00:01]} 4. Bg2 {[%emt 0:00:01]} O-O {[%emt 0:00:02]} 5. O-O {[%emt 0:00:02]} d5 {[%emt 0:00:02]} 6. c4 {[%emt 0:00:01]} dxc4 {[%emt 0:00:01]} 7. Na3 {[%emt 0:00:01]} Nc6 {[%emt 0:00:02]} 8. Nxc4 {[%emt 0:00:02]} Be6 {[%emt 0:00:02]} 9. b3 {[%emt 0:00:03]} a5 $1 {[%emt 0:00:01][%mdl 4] is currently scoring better than 9...Bd5.} 10. a4 {[%emt 0:00:05] D77: Fianchetto Grünfeld: 6 0-0: Replies other than 6...c6.} Ne4 $5 {[%emt 0:00:04][%mdl 4] Leaves trodden paths.} 11. Bb2 {[%emt 0:00:07]} Nb4 {[%emt 0:00:01]} 12. e3 {[%emt 0:00:09]} c5 {[%emt 0:00:26]} 13. Qe2 {[%emt 0:00:15]} cxd4 {[%emt 0:00:02]} 14. Nxd4 {[%emt 0:00:20]} Bxc4 {[%emt 0:00:03]} 15. bxc4 {[%emt 0:00:01]} Nc5 {[%emt 0:00:01]} 16. Rfd1 {[%emt 0:00:09]} Qb6 {[%emt 0:00:02]} 17. Nb5 {[%emt 0:00:50]} Bxb2 $146 {[%emt 0:00:02]} ({Predecessor:} 17... Rad8 18. Bxg7 Kxg7 19. Nd4 e5 20. Nc2 Rxd1+ 21. Rxd1 Nxa4 22. e4 Nc3 {0-1 Detrick,E-Leonard,A (2326) USA WS/16WM22 email 2016}) 18. Qxb2 {[%emt 0:00:01]} Rad8 {[%emt 0:00:01]} 19. Qe5 {[%emt 0:00:14]} e6 {[%emt 0:00:35]} 20. h4 {[%emt 0:00:12]} f6 {[%emt 0:00:27]} 21. Qf4 {[%emt 0:00:07]} Kg7 {[%emt 0:00:11]} 22. h5 {[%emt 0:00:06]} Nbd3 {[%emt 0:00:18]} 23. h6+ {[%emt 0:00:38]} Kf7 {[%emt 0:00:15]} 24. Qf3 {[%emt 0:00:07]} Ke7 {[%emt 0:00:18]} 25. Nd4 {[%emt 0:00:06]} e5 {[%emt 0:00:11]} 26. Nb5 {[%emt 0:00:01]} e4 {[%emt 0:00:15]} 27. Qe2 {[%emt 0:00:01]} f5 {[%emt 0:00:01]} 28. Rdb1 {[%emt 0:00:09]} (28. Nc3 $11) 28... Nb4 {[%emt 0:00:04]} (28... Qe6 $142 $1 29. Qc2 Qf6) 29. Nc3 $17 {[%emt 0:00:01]} Qf6 {[%emt 0:00:07]} 30. Nd5+ $1 {[%emt 0:00:04]} Nxd5 {[%emt 0:00:03]} 31. cxd5 {[%emt 0:00:01]} Rxd5 {[%emt 0:00:02]} 32. Qb5 {[%emt 0:00:03] [#]} ({White should play} 32. Bf1 $1 $15) 32... Rfd8 {[%emt 0:00:07]} ({Better is} 32... b6 $1 $17 {Hoping for ...g5.} 33. Bf1 (33. Qxb6 $2 Rd1+ 34. Bf1 Qxb6 $19) 33... Rd6) 33. Qxa5 {[%emt 0:00:01]} R8d7 {[%emt 0:00:06]} 34. Qa8 {[%emt 0:00:03]} Qf8 {[%emt 0:00:06]} 35. Qa5 {[%emt 0:00:01]} Qf6 {[%emt 0:00:03]} 36. Qb4 {[%emt 0:00:01]} Qd6 {[%emt 0:00:05]} 37. Bf1 {[%emt 0:00:02]} Nd3 {[%emt 0:00:01]} 38. Qc3 {[%emt 0:00:02]} Qe5 {[%emt 0:00:03]} 39. Qc8 {[%emt 0:00:02] [#]} (39. Qc4 $11 {remains equal.}) 39... Nc5 $2 {[%emt 0:00:03][%mdl 8192]} (39... Nxf2 $1 $17 {stays on course.} 40. Kxf2 Rd2+ 41. Be2 f4 42. gxf4 (42. exf4 $2 Rxe2+ 43. Kf1 Qd4 $19) 42... Rxe2+ 43. Kxe2 Qh5+ 44. Kf1 Qh1+ 45. Ke2 Qf3+ (45... Qg2+ $2 46. Ke1 $19) 46. Ke1 Qxe3+ (46... Qh1+ $2 47. Ke2 $19) 47. Kf1 Qxf4+ 48. Ke1 (48. Kg1 Qg4+ 49. Kf1 Rd1+ 50. Rxd1 Qxc8 $17) 48... e3 49. Qxd7+ (49. Rxb7 $2 Qf2#) 49... Kxd7) 40. Qg8 $18 {[%emt 0:00:02]} Kf6 {[%emt 0:00:02]} 41. Rb6+ $2 {[%emt 0:00:05]} (41. Bc4 $18) 41... Kg5 $11 {[%emt 0:00:01]} 42. Rc1 {[%emt 0:00:03]} Nd3 {[%emt 0:00:01]} 43. Rc2 $2 {[%emt 0:00:01][%mdl 8192]} (43. Bxd3 $1 $11 {and White is okay.} Rxd3 44. Kh2) 43... Ne1 $19 {[%emt 0:00:01]} 44. Re2 $2 {[%emt 0:00:02]} (44. Rc1 $19 Nf3+ 45. Kg2) 44... Nf3+ {[%emt 0:00:02]} 45. Kg2 {[%emt 0:00:01]} Rd1 {[%emt 0:00:01]} (45... Kxh6 46. Rb1 $17) 46. Qb3 {[%emt 0:00:04]} Rxf1 {[%emt 0:00:04]} 47. Kxf1 {[%emt 0:00:02]} Qa1+ {[%emt 0:00:02]} (47... Kxh6 48. Kg2 $11 (48. Rxb7 Qa1+ 49. Qb1 Rd1+)) 48. Qb1 {[%emt 0:00:02]} Rd1+ {[%emt 0:00:01]} ({Worse is} 48... Qxa4 49. Rc2 $11 (49. Rxb7 $2 {perishes.} Rxb7 50. Qc1 Qa6 $19) (49. Kg2 $2 Rd1 $19)) 0-1

[Event "Vugar Gashimov Memorial Blitz 2024"]
[Site "Shusha"]
[Date "2024.09.28"]
[Round "14.4"]
[White "Nepomniachtchi, Ian"]
[Black "Suleymanli, Aydin"]
[Result "1-0"]
[ECO "C84"]
[WhiteElo "2755"]
[BlackElo "2632"]
[Annotator "TA"]
[PlyCount "101"]
[EventDate "2024.09.28"]
[EventType "tourn"]
[EventCountry "AZE"]
[SourceTitle "playchess.com"]
[Source "ChessBase"]
[SourceQuality "1"]
[TimeControl "180+2"]

{[%evp 13,101,17,25,10,26,17,20,0,25,0,1,5,0,0,15,0,0,0,7,0,0,0,7,-8,0,-40,-35,-29,0,0,0,-8,72,-24,23,0,0,0,16,23,146,138,169,96,360,344,323,222,218,235,327,335,336,350,314,345,350,252,223,211,225,125,431,323,301,320,329,304,341,347,343,326,513,362,569,522,547,551,626,595,672,673,679,664,661,649,29977,29978,29983,29983]} 1. e4 {[%emt 0:00:00]} e5 {[%emt 0:00:00]} 2. Nf3 {[%emt 0:00:01]} Nc6 {[%emt 0:00:01]} 3. Bb5 {[%emt 0:00:01][%cal Bf1b5,Bb5a4,Ba4b3,Bb3a2][%mdl 32]} a6 {[%emt 0:00:01]} 4. Ba4 {[%emt 0:00:01]} Nf6 {[%emt 0:00:01]} 5. O-O {[%emt 0:00:01]} Be7 {[%emt 0:00:01]} 6. d3 {[%emt 0:00:02]} b5 {[%emt 0:00:01]} 7. Bb3 {[%emt 0:00:01]} d6 {[%emt 0:00:01]} 8. a3 {[%emt 0:00:00]} Na5 {[%emt 0:00:01]} 9. Ba2 {[%emt 0:00:01]} c5 {[%emt 0:00:02]} 10. Bg5 {[%emt 0:00:01] Die Stellung ist ausgeglichen.} Be6 {[%emt 0:00:18]} 11. Nc3 {[%emt 0:00:02]} O-O {[%emt 0:00:08]} 12. Bxf6 {[%emt 0:00:02]} Bxf6 {[%emt 0:00:01]} 13. Nd5 {[%emt 0:00:01]} Nc6 {[%emt 0:00:02]} 14. c3 {[%emt 0:00:04]} a5 {[%emt 0:00:06]} 15. a4 {[%emt 0:00:02]} b4 {[%emt 0:00:01]} 16. Qd2 {[%emt 0:00:03]} g6 {[%emt 0:00:07]} 17. Bc4 {[%emt 0:00:06]} Bg7 {[%emt 0:00:35]} 18. Ng5 {[%emt 0:00:03]} Bd7 {[%emt 0:00:28]} 19. h4 {[%emt 0:00:24]} h6 {[%emt 0:00:04] Wehrt f4 ab} 20. Nf3 {[%emt 0:00:01]} Bg4 {[%emt 0:00:09]} 21. Nh2 {[%emt 0:00:07]} Be6 {[%emt 0:00:35]} 22. h5 {[%emt 0:00:04]} Kh7 {[%emt 0:00:19]} (22... gxh5 $11 23. Qe2 h4) 23. g3 {[%emt 0:00:05] Weiß steht aktiver.} (23. hxg6+ $1 $16 fxg6 24. Nxb4 Bxc4 25. Nxc6) 23... Ra7 {[%emt 0:00:05]} (23... Bh3 $142) 24. Kg2 {[%emt 0:00:02]} (24. hxg6+ $5 fxg6 25. Nxb4 $16) 24... Qc8 {[%emt 0:00:15]} 25. Rh1 {[%emt 0:00:02]} Bh3+ {[%emt 0:00:06][%cal Be6h3,Bh3g4,Bg4f3][%mdl 32]} 26. Kg1 {[%emt 0:00:00]} f5 {[%emt 0:00:08]} (26... Ne7 $11) 27. hxg6+ $16 {[%emt 0:00:05]} Kxg6 {[%emt 0:00:01][%cal Of5f4]} 28. Nf3 {[%emt 0:00:33]} (28. Nb6 $18 Qd8 29. Nf3) 28... fxe4 $2 {[%emt 0:00:01][%mdl 8192]} (28... f4 $16) 29. Nh4+ $18 {[%emt 0:00:02] Ein dynamisches Springerpaar.} Kh7 {[%emt 0:00:01]} 30. dxe4 {[%emt 0:00:01]} (30. Rxh3 Qxh3 31. Qe2 (31. dxe4 Raf7 $16) 31... e3 32. Nxe3 (32. fxe3 $2 Qxg3+ 33. Qg2 Qxh4 $19) 32... e4 $16) 30... Bg4 {[%emt 0:00:09]} 31. Ne3 {[%emt 0:00:02]} Rf6 {[%emt 0:00:07]} 32. Nhf5 {[%emt 0:00:04]} Bf3 {[%emt 0:00:01] [#]} 33. Rh4 {[%emt 0:00:05]} (33. Nxd6 $2 {verliert.} Qd8 34. Nef5 Bxh1 (34... Rd7 $2 35. Rh4 $19) 35. Kxh1 Rd7 $19) 33... Ne7 {[%emt 0:00:01]} 34. Nxe7 {[%emt 0:00:17]} (34. Nxd6 $2 {geht unter.} Qd8 35. Nd5 Rxd6 $19) 34... Rxe7 {[%emt 0:00:03]} 35. Nf5 $40 {[%emt 0:00:00][%mdl 128] Weiss riecht Blut.} Rxf5 {[%emt 0:00:07]} 36. exf5 {[%emt 0:00:07]} Qxf5 {[%emt 0:00:02] [#]} 37. Qxd6 {[%emt 0:00:03]} ({Vorzuziehen ist} 37. Re1 $1 $18) 37... Rd7 {[%emt 0:00:01][%mdl 8192]} (37... Bf6 $16 38. Qd8 h5) 38. Be6 {[%emt 0:00:01]} Rxd6 {[%emt 0:00:02]} 39. Bxf5+ {[%emt 0:00:01]} Kg8 {[%emt 0:00:01]} 40. Be4 {[%emt 0:00:00]} Be2 {[%emt 0:00:01]} 41. cxb4 {[%emt 0:00:07]} cxb4 {[%emt 0:00:01][%cal Bc5b4,Bb4b3][%mdl 32]} 42. Rc1 {[%emt 0:00:01]} Rd2 {[%emt 0:00:03]} (42... Rd1+ $142 43. Rxd1 Bxd1 44. Bd5+ Kf8) 43. Rc2 {[%emt 0:00:05]} Rd1+ {[%emt 0:00:01]} (43... Rxc2 $142 44. Bxc2 h5) 44. Kg2 {[%emt 0:00:02]} Bf1+ {[%emt 0:00:01]} 45. Kh2 {[%emt 0:00:00]} b3 {[%emt 0:00:06]} 46. Rc8+ {[%emt 0:00:01]} Kf7 {[%emt 0:00:01]} 47. Rc7+ {[%emt 0:00:01]} Kf8 {[%emt 0:00:04]} 48. Rg4 {[%emt 0:00:02]} Bf6 {[%emt 0:00:03]} 49. Rg6 {[%emt 0:00:01][%csl LRf6,LRh6]} Be7 {[%emt 0:00:03]} 50. Rxh6 {[%emt 0:00:04]} Rd2 {[%emt 0:00:01]} 51. Rh8+ {[%emt 0:00:03] Gewichteter Fehlerwert: Weiß=0.32/Schwarz=0.53.  Verlustzug:     	---       	Schwarz=2     Fehler:       	Weiß=3     	Schwarz=5     Ungenau:       	Weiß=2     	Schwarz=2     OK:         	Weiß=15    	Schwarz=10    Bester:       	Weiß=2     	Schwarz=3} 1-0